bitfinex-derivatives/quotes_ETHF0:USTF0_20250624
["timestamp","ask_amount","ask_price","bid_price","bid_amount"]
[1750781095256,4.7194,2445.1,2445.0,0.81762]
[1750781095444,35.509,2445.1,2445.0,0.81762]
[1750781095648,34.814,2445.1,2445.0,0.81762]
[1750781095851,3.2078,2445.5,2444.9,1.3946]
[1750781096163,3.2078,2445.5,2445.4,0.81749]
[1750781096562,0.8175,2445.4,2445.3,0.81751]
[1750781096874,38.83328,2445.5,2445.3,0.81751]
[1750781097064,38.83328,2445.5,2445.4,0.81749]
[1750781097359,0.81749,2445.4,2445.3,0.8175]
[1750781097549,38.83227,2445.5,2445.3,0.8175]
[1750781097756,38.83227,2445.5,2445.2,0.6728]
[1750781098057,43.75598599,2445.5,2445.0,3.2078]
[1750781098259,0.81761,2445.1,2444.9,0.81762]
[1750781098465,0.81769,2444.8,2444.7,0.81772]
[1750781098960,0.81769,2444.8,2444.6,2.42508547]
[1750781099263,34.791,2444.7,2444.6,0.81774]
[1750781100854,0.81776,2444.6,2444.5,1.60734547]
[1750781101055,34.791,2444.7,2444.5,0.81777]
[1750781101262,34.791,2444.7,2444.6,0.81776]
[1750781101866,3.2078,2444.9,2444.7,0.81772]
[1750781102064,2.04432,2444.7,2444.3,2.42519547]
[1750781102273,0.81785,2444.4,2444.2,0.81787]
[1750781102572,34.779,2444.3,2444.2,0.81787]
[1750781102771,34.779,2444.3,2444.1,6.35534547]
[1750781102772,35.59686,2444.3,2444.1,6.35534547]
[1750781102972,34.779,2444.3,2444.2,0.81789]
[1750781103162,35.59686,2444.3,2444.1,6.35534547]
[1750781103366,34.779,2444.3,2444.2,0.81789]
[1750781103563,35.59686,2444.3,2444.2,0.81789]
[1750781103765,34.779,2444.3,2444.2,0.81789]
[1750781104070,0.81789,2444.2,2444.1,6.35534547]
[1750781104277,0.81789,2444.2,2444.1,4.81514547]
[1750781104570,34.779,2444.3,2444.0,1.60734547]
[1750781104769,35.59689,2444.3,2444.1,0.81791]
[1750781104970,34.779,2444.3,2444.1,0.81791]
[1750781105169,35.59688,2444.3,2444.1,0.81791]
[1750781105371,34.779,2444.3,2444.2,0.81789]
[1750781105975,35.59686,2444.3,2444.2,0.81789]
[1750781106171,35.58186,2444.3,2444.2,0.81789]
[1750781106367,0.81793,2444.1,2444.0,2.42529547]
[1750781106569,27.84093,2444.1,2444.0,1.60734547]
[1750781106772,0.81796,2444.0,2443.9,1.60734547]
[1750781107077,0.81799,2443.9,2443.8,3.2078]
[1750781107279,36.26079,2443.9,2443.8,3.2078]
[1750781107774,43.6506,2443.9,2443.6,1.60734547]
[1750781107964,2.0788,2443.8,2443.2,4.4565882]
[1750781108169,35.57606,2443.7,2443.6,0.81809]
[1750781108473,0.6777,2443.8,2443.7,0.81806]
[1750781108874,35.57303,2443.8,2443.6,0.81807]
[1750781109181,47.8038,2443.9,2443.4,8.06379]
[1750781109182,51.82962,2443.9,2443.7,0.81806]
[1750781109476,34.752,2443.8,2443.4,8.06379]
[1750781109672,34.751,2443.8,2443.5,2.04532]
[1750781109873,34.751,2443.8,2443.7,0.81806]
[1750781110472,34.751,2443.8,2443.4,4.609]
[1750781110673,34.751,2443.8,2443.2,4.4565782]
[1750781110876,0.81807,2443.7,2443.3,1.3878]
[1750781111078,27.82509,2443.6,2443.5,0.8181]
[1750781111379,27.82509,2443.6,2443.4,0.81813]
[1750781111380,0.81813,2443.5,2443.4,0.81813]
[1750781111778,27.007,2443.6,2443.3,1.3878]
[1750781111986,0.81814,2443.5,2443.4,0.81814]
[1750781112190,0.81814,2443.5,2443.2,3.0797182]
[1750781112191,27.8251,2443.6,2443.5,0.81813]
[1750781113292,0.81804,2443.8,2443.7,0.81803]
[1750781113489,34.662,2443.8,2443.4,0.6689]
[1750781113690,0.81814,2443.5,2443.4,0.81812]
[1750781113885,27.81414,2443.5,2443.4,0.81812]
[1750781115089,0.81819,2443.3,2443.2,1.4869]
[1750781115489,8.47917,2443.4,2443.3,0.81816]
[1750781115994,0.81819,2443.3,2443.2,1.48691]
[1750781116397,0.81819,2443.3,2442.8,7.78703599]
[1750781116398,30.1968,2443.3,2442.8,5.6188182]
[1750781116585,0.81833,2442.9,2442.8,4.02614]
[1750781116987,34.647,2443.0,2442.9,0.81833]
[1750781117494,35.46529,2443.0,2442.9,0.81833]
[1750781117692,34.647,2443.0,2442.9,0.81833]
[1750781117993,34.647,2443.0,2442.9,2.20643]
[1750781118295,0.81827,2443.1,2443.0,0.81829]
[1750781118495,0.81829,2443.0,2442.9,2.20641]
[1750781118794,35.46129,2443.1,2443.0,0.81829]
[1750781118995,34.643,2443.1,2443.0,0.81829]
[1750781119199,0.6861,2443.3,2443.0,0.81829]
[1750781119487,0.6861,2443.3,2443.2,4.02603]
[1750781119892,35.45617,2443.4,2443.3,0.81819]
[1750781120393,34.638,2443.4,2443.3,0.81819]
[1750781120592,2.54253,2443.5,2443.4,0.81816]
[1750781120793,1.0231,2443.5,2443.4,0.81816]
[1750781120997,2.8646,2443.6,2443.5,0.81813]
[1750781121190,2.8646,2443.6,2443.5,5.34583]
[1750781121390,2.8646,2443.6,2443.5,7.2601675]
[1750781123091,2.8646,2443.6,2443.5,6.5529675]
[1750781124100,3.68269,2443.6,2443.5,6.5529675]
[1750781124296,3.68269,2443.6,2443.5,5.34583]
[1750781124690,3.68269,2443.6,2443.5,4.02593]
[1750781124993,3.68269,2443.6,2443.5,3.2078]
[1750781125193,3.68269,2443.6,2443.3,1.8705375]
[1750781125194,3.6827,2443.6,2443.3,1.8705375]
[1750781125385,3.6827,2443.6,2443.5,0.81813]
[1750781126496,0.81813,2443.5,2443.4,1.2071375]
[1750781126691,11.70144599,2443.5,2443.0,1.2071375]
[1750781126991,11.70144599,2443.5,2442.6,1.2071375]
[1750781126992,0.81839,2442.7,2442.6,1.2071375]
[1750781127194,0.81843,2442.6,2442.5,2.0255875]
[1750781127397,0.81843,2442.6,2442.5,1.2071375]
[1750781127598,34.609,2442.7,2442.5,1.2071375]
[1750781127899,0.81846,2442.5,2442.4,1.2071375]
[1750781128295,34.609,2442.7,2442.5,0.81846]
[1750781128499,34.609,2442.7,2442.5,1.2092663]
[1750781128698,0.81843,2442.6,2442.5,1.2092663]
[1750781128998,0.81846,2442.5,2442.4,1.2092663]
[1750781129200,34.609,2442.7,2442.2,5.6188182]
[1750781129395,0.81843,2442.6,2442.5,1.20944669]
[1750781129595,35.9324,2442.7,2442.4,1.20944669]
[1750781129903,0.81846,2442.5,2442.4,2.02793669]
[1750781130196,27.75746,2442.5,2442.4,1.20944669]
[1750781130402,28.986,2442.5,2442.4,2.02793669]
[1750781131196,2.047,2442.5,2442.4,2.02793669]
[1750781132301,2.047,2442.5,2442.4,0.81849]
[1750781132801,27.6529,2442.9,2442.8,0.81836]
[1750781133001,28.47123,2442.9,2442.8,0.81836]
[1750781134205,27.6529,2442.9,2442.8,0.81836]
[1750781134705,28.47123,2442.9,2442.8,0.81836]
[1750781134897,27.6529,2442.9,2442.6,4.41652194]
[1750781135101,27.6529,2442.9,2442.6,4.02621]
[1750781135102,0.81839,2442.7,2442.6,4.02621]
[1750781135305,0.81842,2442.7,2442.5,1.20872194]
[1750781135604,7.664,2442.6,2442.5,2.02718194]
[1750781136403,8.48243,2442.6,2442.5,2.02718194]
[1750781136608,7.664,2442.6,2442.5,2.02718194]
[1750781137301,34.585,2442.6,2442.5,2.02718194]
[1750781139201,0.81838,2442.8,2442.7,0.81839]
[1750781139401,0.81843,2442.7,2442.6,0.81841]
[1750781139902,36.76138,2442.8,2442.7,0.81839]
[1750781140104,40.03628,2442.8,2442.7,0.81839]
[1750781140709,0.81841,2442.7,2442.6,0.8184]
[1750781140909,40.03628,2442.8,2442.7,0.81839]
[1750781141110,0.81841,2442.7,2442.6,0.81841]
[1750781141406,2.12701,2442.7,2442.6,0.81841]
[1750781141702,1.3086,2442.7,2442.5,1.20872194]
[1750781141907,0.81846,2442.5,2442.4,0.0637515]
[1750781142309,2.12706,2442.5,2442.4,0.0637515]
[1750781142811,0.81856,2442.2,2442.1,1.21078795]
[1750781143103,0.8186,2442.1,2442.0,3.2078]
[1750781143306,0.81866,2441.9,2441.8,1.21078795]
[1750781143505,0.81866,2441.9,2441.6,7.70319581]
[1750781143506,0.8187,2441.8,2441.7,1.21078795]
[1750781143708,0.81873,2441.7,2441.6,4.41858795]
[1750781143905,8.2734,2441.8,2441.5,2.02956795]
[1750781144104,0.81876,2441.6,2441.5,1.21078795]
[1750781144406,0.81876,2441.6,2441.2,6.3009182]
[1750781144407,0.81886,2441.3,2441.2,1.21078795]
[1750781144705,0.819,2440.9,2440.8,1.21078795]
[1750781144909,35.302,2440.9,2440.7,1.21078795]
[1750781145112,0.81903,2440.8,2440.7,1.21078795]
[1750781145311,0.81903,2440.8,2440.6,2.02988795]
[1750781145612,34.483,2440.9,2440.6,1.21078795]
[1750781145811,35.30202,2440.9,2440.7,0.81905]
[1750781146213,0.81906,2440.7,2440.5,1.21078795]
[1750781146413,0.81906,2440.7,2440.4,5.91982795]
[1750781146614,0.8191,2440.6,2440.4,5.91982795]
[1750781146808,26.884,2440.6,2440.4,3.8899]
[1750781147004,26.884,2440.6,2440.4,3.2078]
[1750781147206,0.81917,2440.4,2440.2,1.21078795]
[1750781147409,0.81917,2440.4,2440.2,0.81922]
[1750781147811,26.88,2440.3,2440.2,0.81922]
[1750781148515,3.2078,2441.0,2440.3,2.048]
[1750781148815,35.295,2440.9,2440.7,0.81904]
[1750781149016,34.476,2440.9,2440.7,0.81904]
[1750781149422,34.476,2440.9,2440.8,0.81903]
[1750781150516,34.477,2441.1,2440.7,5.25544]
[1750781150709,0.81897,2441.0,2440.7,3.8879]
[1750781150909,0.81903,2440.8,2440.7,3.2078]
[1750781151115,26.878,2440.8,2440.7,4.02686]
[1750781152025,0.81906,2440.7,2440.6,0.0637515]
[1750781152231,8.41506,2440.7,2440.6,0.8828515]
[1750781152414,8.41506,2440.7,2440.6,0.0637515]
[1750781153126,8.41506,2440.7,2440.6,0.8828515]
[1750781153416,7.596,2440.7,2440.6,0.8828515]
[1750781154221,8.41506,2440.7,2440.6,0.8828515]
[1750781154613,8.41506,2440.7,2440.6,0.0637515]
[1750781155421,9.77736,2440.7,2440.6,0.0637515]
[1750781156713,12.98516,2440.7,2440.6,0.0637515]
[1750781156919,12.98516,2440.7,2440.0,4.6449]
[1750781156920,2.04785,2440.5,2440.0,2.25638]
[1750781157119,0.81925,2440.2,2440.1,0.81926]
[1750781157422,35.27725,2440.2,2440.1,0.81926]
[1750781157827,34.458,2440.2,2440.1,0.81926]
[1750781159126,2.04817,2440.1,2439.3,3.2078]
[1750781159422,5.25627,2439.8,2439.3,3.2078]
[1750781159619,0.81945,2439.6,2439.3,4.02733]
[1750781159823,26.856,2439.5,2439.3,4.02733]
[1750781160126,26.856,2439.5,2439.3,4.02731]
[1750781160327,27.67547,2439.5,2439.3,4.02731]
[1750781160523,26.856,2439.5,2439.0,2.1089]
[1750781160723,26.856,2439.5,2438.7,3.2078]
[1750781160724,0.8197,2438.8,2438.7,3.2078]
[1750781160919,34.45,2438.9,2438.8,0.8197]
[1750781161228,34.45,2438.9,2438.8,1.4166]
[1750781161229,35.26867,2438.9,2438.8,1.4166]
[1750781161527,0.81978,2438.6,2438.4,0.81982]
[1750781161730,0.81973,2438.8,2438.3,3.9001]
[1750781161918,0.81975,2438.7,2438.6,0.81976]
[1750781162233,3.2078,2439.6,2438.8,2.04926]
[1750781162524,39.70942,2439.6,2438.8,3.2078]
[1750781162827,0.81965,2439.0,2438.8,4.02749]
[1750781163024,0.81967,2438.9,2438.8,3.2078]
[1750781163230,34.452,2439.1,2438.8,3.2078]
[1750781163531,0.81967,2438.9,2438.8,3.2078]
[1750781163915,3.2078,2439.6,2438.8,10.25704]
[1750781164114,34.447,2439.5,2439.1,3.2078]
[1750781164523,35.26647,2439.5,2439.2,1.3053]
[1750781164723,35.26647,2439.5,2439.2,0.81955]
[1750781164918,0.81956,2439.3,2439.0,1.55721]
[1750781165132,27.66959,2439.2,2438.9,0.81965]
[1750781165325,34.45,2439.1,2439.0,0.81964]
[1750781167530,1.0249,2439.2,2439.1,0.8196]
[1750781167829,35.4679,2439.2,2438.8,3.2078]
[1750781168030,0.81964,2439.0,2438.9,0.81965]
[1750781168225,0.81963,2439.1,2438.9,0.81965]
[1750781168432,0.81965,2439.0,2438.8,0.81968]
[1750781168725,26.842,2438.9,2438.8,0.81968]
[1750781168932,8.6259,2439.2,2439.1,0.8196]
[1750781169130,36.28649,2439.2,2439.0,0.81963]
[1750781169327,35.4669,2439.2,2439.1,0.8196]
[1750781169633,36.28647,2439.2,2439.1,0.8196]
[1750781170020,0.8196,2439.1,2438.9,0.81965]
[1750781170222,0.81964,2439.0,2438.9,0.81965]
[1750781170435,0.81964,2439.0,2438.8,2.17807]
[1750781170621,26.836,2438.9,2438.8,2.17807]
[1750781170824,0.5777,2439.0,2438.9,0.81967]
[1750781171025,35.0177,2439.0,2438.9,0.81967]
[1750781171323,35.83734,2439.0,2438.9,2.17807]
[1750781171528,35.0157,2439.0,2438.9,2.17807]
[1750781171732,35.83534,2439.0,2438.9,2.17807]
[1750781172036,35.0157,2439.0,2438.9,2.17807]
[1750781172228,35.83534,2439.0,2438.9,0.81967]
[1750781173734,35.0157,2439.0,2438.7,0.0637515]
[1750781173934,0.8197,2438.8,2438.7,0.8834615]
[1750781174132,27.6487,2438.8,2438.7,0.0637515]
[1750781174525,0.5777,2439.0,2438.7,0.0637515]
[1750781174831,0.8197,2438.8,2438.7,0.0637515]
[1750781175430,36.20568,2438.9,2438.7,0.0637515]
[1750781175634,36.20568,2438.9,2438.8,0.8197]
[1750781175831,0.8197,2438.8,2438.7,0.8834615]
[1750781176130,0.8197,2438.8,2438.7,0.8834915]
[1750781177043,35.1757,2438.8,2438.7,0.8834915]
[1750781177539,34.356,2438.8,2438.7,0.8834915]
[1750781178035,35.1757,2438.8,2438.7,0.8834915]
[1750781178241,35.1757,2438.8,2438.7,0.0637515]
[1750781178449,0.81987,2438.3,2438.2,0.8199]
[1750781178740,35.17087,2438.3,2438.2,0.8199]
[1750781178942,0.81993,2438.2,2438.1,0.81992]
[1750781179140,35.1709,2438.3,2438.2,0.8199]
[1750781179341,0.8199,2438.2,2438.1,2.17461]
[1750781179540,34.351,2438.3,2438.1,2.17461]
[1750781179541,35.1709,2438.3,2438.2,0.8199]
[1750781179741,34.351,2438.3,2438.2,0.8199]
[1750781180046,35.17087,2438.3,2438.2,0.8199]
[1750781180250,0.8199,2438.2,2438.1,2.17462]
[1750781180545,35.17087,2438.3,2438.2,0.8199]
[1750781181645,35.97867,2438.3,2438.2,0.8199]
[1750781182147,0.8199,2438.2,2438.1,2.17462]
[1750781182447,0.81994,2438.1,2438.0,3.2078]
[1750781182638,27.62694,2438.1,2438.0,3.2078]
[1750781182953,0.82007,2437.7,2437.6,2.90207]
[1750781183151,27.62507,2437.7,2437.6,2.90207]
[1750781183355,26.805,2437.7,2437.6,2.90207]
[1750781183563,27.62507,2437.7,2437.6,2.90207]
[1750781183753,26.805,2437.7,2437.6,2.90207]
[1750781183955,27.62507,2437.7,2437.6,2.90207]
[1750781184349,26.805,2437.7,2437.6,2.90207]
[1750781185056,55.5748,2438.3,2438.2,0.8199]
[1750781185362,0.8078,2438.3,2438.2,5.23928239]
[1750781185554,0.8078,2438.3,2438.2,4.0277]
[1750781185862,0.8199,2438.2,2438.1,0.686]
[1750781186156,0.8199,2438.2,2438.0,1.21158239]
[1750781186157,0.82001,2438.0,2437.9,0.82]
[1750781186360,0.82001,2437.9,2437.8,0.82003]
[1750781186858,0.82007,2437.8,2437.7,0.82005]
[1750781187161,0.82007,2437.8,2437.6,1.21158239]
[1750781187162,0.82007,2437.7,2437.6,0.82011]
[1750781187362,0.82007,2437.7,2437.6,1.21158239]
[1750781187562,26.796,2437.8,2437.5,1.92408239]
[1750781187563,0.82011,2437.6,2437.5,1.92408239]
[1750781187761,26.793,2437.6,2437.5,2.74419239]
[1750781187953,35.15211,2437.6,2437.5,1.21158239]
[1750781188160,0.82014,2437.5,2437.4,1.21158239]
[1750781188361,0.82014,2437.5,2437.4,2.03547839]
[1750781188858,0.82014,2437.5,2437.4,1.21532839]
[1750781189063,0.82017,2437.4,2437.3,4.42312839]
[1750781189260,3.2078,2437.5,2437.0,1.21532839]
[1750781189459,0.82022,2437.3,2437.2,0.82023]
[1750781189652,35.14719,2437.4,2437.2,0.82023]
[1750781189856,0.82021,2437.3,2437.2,0.82023]
[1750781190175,3.2078,2437.5,2437.4,0.82017]
[1750781190363,3.2078,2437.5,2437.1,1.3209]
[1750781190364,38.35496,2437.5,2437.3,0.82019]
[1750781190660,34.327,2437.4,2437.3,0.82019]
[1750781191453,3.2078,2437.5,2437.4,0.82017]
[1750781191659,37.5308,2437.5,2437.4,0.82017]
[1750781191855,38.35094,2437.5,2437.4,0.82017]
[1750781192056,38.35094,2437.5,2437.3,0.82018]
[1750781192353,0.82017,2437.4,2437.2,0.82022]
[1750781192560,27.60621,2437.3,2437.2,0.82022]
[1750781192754,27.60621,2437.3,2437.1,2.14115]
[1750781192958,26.786,2437.3,2436.9,4.02813]
[1750781193262,0.82026,2437.2,2437.0,0.82031]
[1750781193457,34.323,2437.1,2437.0,0.82031]
[1750781193658,1.51302,2437.3,2436.9,5.25864]
[1750781193862,1.51302,2437.3,2437.1,0.82027]
[1750781193863,34.322,2437.2,2437.1,0.82027]
[1750781194368,35.14224,2437.2,2437.1,0.82027]
[1750781194865,0.82027,2437.1,2437.0,2.20388]
[1750781195163,34.322,2437.2,2437.1,0.82027]
[1750781195362,35.14227,2437.2,2437.1,0.82027]
[1750781195554,0.82027,2437.2,2437.1,0.82027]
[1750781195754,0.6928,2437.3,2436.9,4.02813]
[1750781195755,0.82031,2437.0,2436.9,4.02813]
[1750781195955,34.317,2437.0,2436.6,4.42312839]
[1750781196157,0.82035,2436.9,2436.8,0.82035]
[1750781196858,38.00963,2437.0,2436.9,0.82034]
[1750781197162,2.8723,2437.0,2436.9,0.82034]
[1750781197458,37.1843,2437.0,2436.9,4.02814]
[1750781197865,2.8723,2437.0,2436.9,4.02814]
[1750781198662,2.8723,2437.0,2436.9,6.01534]
[1750781199364,2.05006,2437.9,2436.9,6.01534]
[1750781199365,34.313,2437.6,2437.0,4.10156]
[1750781199565,34.313,2437.6,2437.5,0.82014]
[1750781199775,1.5557,2437.7,2437.6,0.82011]
[1750781200062,1.5557,2437.7,2437.3,0.0637515]
[1750781200063,35.0456,2437.7,2437.3,0.0637515]
[1750781200268,0.82017,2437.4,2437.3,0.0637515]
[1750781200463,27.58617,2437.4,2437.3,0.0637515]
[1750781200868,0.82036,2436.9,2436.8,0.82035]
[1750781201167,35.12636,2436.9,2436.8,0.82035]
[1750781201369,0.82038,2436.8,2436.7,4.02819]
[1750781201570,34.306,2436.9,2436.8,0.82038]
[1750781201763,35.12634,2436.9,2436.8,0.82038]
[1750781201965,0.82042,2436.7,2436.6,0.82041]
[1750781202570,0.82043,2436.7,2436.6,0.82043]
[1750781203170,0.6691,2436.8,2436.5,0.82045]
[1750781203171,0.82045,2436.6,2436.5,0.82045]
[1750781203468,27.57845,2436.6,2436.5,0.82045]
[1750781205075,0.8205,2436.5,2436.1,3.2078]
[1750781205370,35.06251,2436.4,2436.1,4.5273]
[1750781205565,11.04293732,2436.8,2436.1,4.5273]
[1750781205760,0.82048,2436.5,2436.4,0.82049]
[1750781206173,0.723,2436.6,2436.1,4.5273]
[1750781206364,26.752,2436.5,2436.4,0.8205]
[1750781207069,51.84293732,2436.8,2436.7,0.82041]
[1750781207070,3.8769,2436.8,2436.7,0.82041]
[1750781207371,3.9312,2437.2,2436.8,2.05092]
[1750781207673,11.4192,2437.2,2437.1,0.82027]
[1750781208464,12.23944,2437.2,2437.1,0.82027]
[1750781208873,11.4192,2437.2,2437.1,0.82027]
[1750781209673,7.488,2437.2,2437.1,0.82027]
[1750781209966,1.0256,2437.4,2437.1,0.82027]
[1750781209967,27.7746,2437.4,2437.3,0.82021]
[1750781210173,35.2626,2437.4,2437.3,0.82021]
[1750781210362,1.0256,2437.4,2437.3,0.82021]
[1750781210771,1.0256,2437.4,2437.3,2.24281]
[1750781211068,1.0256,2437.4,2437.3,0.82021]
[1750781211868,1.8458,2437.4,2437.1,5.09294699]
[1750781212076,1.0256,2437.4,2437.3,0.82021]
[1750781212772,2.0512,2437.4,2437.3,0.82021]
[1750781214280,36.2762,2437.4,2437.3,0.82021]
[1750781214873,36.2762,2437.4,2437.3,2.15141]
[1750781215476,36.2762,2437.4,2437.3,3.36225699]
[1750781216381,2.0512,2437.4,2437.3,3.36225699]
[1750781217471,2.0512,2437.4,2437.3,2.15141]
[1750781217776,2.0512,2437.4,2437.3,10.33586552]
[1750781218175,2.0512,2437.4,2437.3,7.92484732]
[1750781218474,2.0512,2437.4,2437.3,2.15141]
[1750781219078,2.0512,2437.4,2437.2,2.4351891]
[1750781219271,2.0512,2437.4,2437.1,1.21821909]
[1750781219272,26.716,2437.3,2437.1,1.21821909]
[1750781219479,26.716,2437.3,2437.0,1.6237672]
[1750781219480,0.82027,2437.1,2437.0,1.21821909]
[1750781219679,27.53527,2437.1,2437.0,1.21821909]
[1750781219880,0.82031,2437.0,2436.9,1.21821909]
[1750781220078,10.32681,2437.0,2436.9,1.21821909]
[1750781220279,10.32681,2437.0,2436.8,1.21821909]
[1750781220280,0.82034,2436.9,2436.8,1.21821909]
[1750781220580,0.82041,2436.7,2436.6,1.21821909]
[1750781220779,27.53341,2436.7,2436.6,1.21821909]
[1750781221574,27.53341,2436.7,2436.6,2.03865909]
[1750781221781,27.53341,2436.7,2436.5,4.8315672]
[1750781221782,5.44115,2436.9,2436.5,4.8315672]
[1750781221979,3.2078,2436.9,2436.8,2.03973678]
[1750781222179,37.4068,2436.9,2436.8,2.03973678]
[1750781222482,0.82038,2436.8,2436.7,1.21935678]
[1750781222682,0.82041,2436.7,2436.6,1.21935678]
[1750781222877,27.52941,2436.7,2436.6,2.03979678]
[1750781223083,27.52941,2436.7,2436.6,1.21935678]
[1750781223277,26.709,2436.7,2436.6,2.03979678]
[1750781223476,0.6834,2437.0,2436.6,3.6748672]
[1750781223676,34.195,2436.9,2436.7,1.21899523]
[1750781223883,34.195,2436.9,2436.6,1.21899523]
[1750781224077,34.195,2436.9,2436.8,0.82038]
[1750781224289,35.01534,2436.9,2436.7,2.03937523]
[1750781224478,35.01338,2436.8,2436.7,1.21899523]
[1750781224682,34.193,2436.8,2436.6,1.21899523]
[1750781224878,34.193,2436.8,2436.7,2.03940523]
[1750781225384,34.193,2436.8,2436.7,0.82041]
[1750781225589,34.193,2436.8,2436.7,2.03924294]
[1750781225786,47.93,2437.1,2437.0,0.82031]
[1750781226387,82.119,2437.1,2437.0,2.03881899]
[1750781226686,34.188,2437.1,2437.0,2.03881899]
[1750781226981,1.7026,2437.4,2437.0,2.58500899]
[1750781227183,1.0256,2437.4,2437.0,2.58500899]
[1750781227379,1.0256,2437.4,2437.3,0.82021]
[1750781227785,1.0256,2437.4,2437.3,3.40521899]
[1750781228691,1.84577,2437.4,2437.3,1.21850899]
[1750781228884,0.82021,2437.3,2437.2,2.03873899]
[1750781229580,1.8458,2437.4,2437.2,2.03873899]
[1750781229781,0.82021,2437.3,2437.2,2.03873899]
[1750781229978,0.82021,2437.3,2437.2,1.21850899]
[1750781230180,0.82024,2437.2,2437.1,1.21850899]
[1750781230386,1.55144,2437.2,2437.1,1.21850899]
[1750781230786,4.75924,2437.2,2437.1,1.21850899]
[1750781230986,0.82027,2437.1,2437.0,1.21850899]
[1750781231287,34.176,2437.1,2436.9,1.6237672]
[1750781231486,0.82027,2437.1,2437.0,1.6237672]
[1750781231686,34.99627,2437.1,2437.0,1.6237672]
[1750781231892,34.99627,2437.1,2437.0,1.21921586]
[1750781232086,34.99627,2437.1,2437.0,2.03952586]
[1750781232280,34.176,2437.1,2437.0,2.03952586]
[1750781232480,34.173,2437.2,2437.1,0.82027]
[1750781232676,34.173,2437.2,2437.1,2.13957]
[1750781233089,34.173,2437.2,2437.1,3.7633372]
[1750781233283,34.173,2437.2,2437.1,2.13957]
[1750781233686,3.9306,2437.5,2437.3,0.82021]
[1750781233885,34.171,2437.4,2437.3,0.82021]
[1750781234083,34.99117,2437.4,2437.3,0.82021]
[1750781234286,0.82017,2437.4,2437.3,0.82021]
[1750781234589,34.93717,2437.4,2437.3,0.82021]
[1750781235090,35.96277,2437.4,2437.3,0.82021]
[1750781235291,0.82021,2437.3,2437.2,1.21902633]
[1750781236196,0.82021,2437.3,2437.1,1.21902633]
[1750781236197,0.82024,2437.2,2437.1,1.21902633]
[1750781236385,27.49324,2437.2,2437.1,1.21902633]
[1750781236990,28.88384,2437.2,2437.1,1.21902633]
[1750781237992,34.65727732,2437.2,2437.1,1.21902633]
[1750781238190,0.82027,2437.1,2437.0,1.21902633]
[1750781238386,0.82031,2437.0,2436.9,1.21902633]
[1750781238586,0.82038,2436.8,2436.7,1.6237672]
[1750781238785,27.48738,2436.8,2436.7,1.6237672]
[1750781239406,0.82041,2436.7,2436.6,0.0637515]
[1750781239692,2.24111,2436.7,2436.6,1.28533627]
[1750781239898,2.24111,2436.7,2436.6,1.22158477]
[1750781240196,0.82048,2436.5,2436.4,2.4351891]
[1750781240384,35.88806,2436.8,2436.5,2.05117]
[1750781240385,7.1701,2436.8,2436.5,2.05117]
[1750781240588,7.1701,2436.8,2436.7,2.44873689]
[1750781240589,6.4907,2436.8,2436.7,2.44873689]
[1750781240889,6.4907,2436.8,2436.7,1.62832689]
[1750781241089,41.41208,2436.8,2436.7,1.22153124]
[1750781241583,7.31108,2436.8,2436.7,2.04194124]
[1750781241788,3.2829,2436.8,2436.7,2.44873689]
[1750781242491,3.2829,2436.8,2436.7,1.62832689]
[1750781242492,4.10328,2436.8,2436.7,1.62832689]
[1750781242686,0.82041,2436.7,2436.6,2.44874689]
[1750781242894,0.82044,2436.6,2436.5,1.62832689]
[1750781243090,1.55204,2436.6,2436.5,1.62832689]
[1750781243989,0.7316,2436.6,2436.5,2.44880689]
[1750781244196,1.55204,2436.6,2436.5,2.44880689]
[1750781244489,2.57804,2436.6,2436.5,1.62832689]
[1750781244886,3.26094,2436.6,2436.5,1.62832689]
[1750781245196,2.4405,2436.6,2436.5,2.44880689]
[1750781245793,1.7576,2436.6,2436.5,2.44880689]
[1750781246288,1.7576,2436.6,2436.5,5.65660689]
[1750781246494,35.118,2436.6,2436.5,6.4634691]
[1750781246688,1.026,2436.6,2436.5,6.4634691]
[1750781246993,27.675,2436.6,2436.5,6.4634691]
[1750781247197,27.675,2436.6,2436.5,7.8484691]
[1750781247997,27.675,2436.6,2436.5,5.6429891]
[1750781248193,28.49548,2436.6,2436.5,0.82048]
[1750781248494,28.49548,2436.6,2436.5,2.45070585]
[1750781248898,28.49548,2436.6,2436.5,1.63022585]
[1750781249492,27.675,2436.6,2436.5,2.45070585]
[1750781250691,28.49544,2436.6,2436.5,2.45070585]
[1750781251100,27.675,2436.6,2436.5,2.45070585]
[1750781252602,28.49544,2436.6,2436.5,2.45070585]
[1750781252804,28.49544,2436.6,2436.5,1.63022585]
[1750781253004,28.49544,2436.6,2436.5,2.45070585]
[1750781253203,35.099,2436.6,2436.5,2.45070585]
[1750781253601,35.91944,2436.6,2436.5,2.45070585]
[1750781254100,35.099,2436.6,2436.5,2.45070585]
[1750781254601,35.094,2436.6,2436.5,2.45070585]
[1750781255314,35.094,2436.6,2436.5,2.51445735]
[1750781256202,35.094,2436.6,2436.5,3.88245735]
[1750781256795,1.026,2436.6,2436.5,3.88245735]
[1750781257002,29.8308,2437.1,2437.0,0.82031]
[1750781257207,30.65107,2437.1,2437.0,0.82031]
[1750781257391,29.8298,2437.1,2437.0,0.82031]
[1750781257596,30.65007,2437.1,2437.0,2.04144061]
[1750781257811,30.65007,2437.1,2437.0,1.22113061]
[1750781258102,0.82031,2437.0,2436.9,2.04146061]
[1750781258294,33.93259,2437.1,2437.0,0.82031]